bitfinex/quotes_BTCUSD_20250617
["timestamp","ask_amount","ask_price","bid_price","bid_amount"]
[1750162058634,0.01247324,105800.0,105790.0,0.82372633]
[1750162059966,0.01247324,105800.0,105790.0,0.3579052]
[1750162060172,0.01247324,105800.0,105790.0,0.5121852]
[1750162060778,0.01247324,105800.0,105790.0,0.25221138]
[1750162061001,0.03137637,105800.0,105790.0,0.2079587]
[1750162061208,0.26734189,105800.0,105790.0,0.21741076]
[1750162061416,0.02192441,105800.0,105790.0,0.21741076]
[1750162061618,0.03137566,105800.0,105790.0,0.21741076]
[1750162061822,0.04082709,105800.0,105790.0,0.21741076]
[1750162062025,0.02192441,105800.0,105790.0,0.37169076]
[1750162062229,0.03137575,105800.0,105790.0,0.40639076]
[1750162062447,0.02192441,105800.0,105790.0,0.40639076]
[1750162063069,0.03137575,105800.0,105790.0,0.40639076]
[1750162063276,0.04082727,105800.0,105790.0,0.40639076]
[1750162063481,0.03137575,105800.0,105790.0,0.40639076]
[1750162063715,0.02192441,105800.0,105790.0,0.40639076]
[1750162063927,0.01247324,105800.0,105790.0,0.40639076]
[1750162064137,0.01247324,105800.0,105790.0,0.50263252]
[1750162064760,0.02192423,105800.0,105790.0,0.50263252]
[1750162064974,0.0313754,105800.0,105790.0,0.50263252]
[1750162065218,0.02192423,105800.0,105790.0,0.50263252]
[1750162066260,0.03137531,105800.0,105790.0,0.50263252]
[1750162066481,0.02192423,105800.0,105790.0,0.50263252]
[1750162066682,0.0313754,105800.0,105790.0,0.50263252]
[1750162066888,0.02192423,105800.0,105790.0,0.50263252]
[1750162067100,0.0313754,105800.0,105790.0,0.50263252]
[1750162067357,0.01247324,105800.0,105790.0,0.50263252]
[1750162067562,0.03137531,105800.0,105790.0,0.50263252]
[1750162068186,0.02192423,105800.0,105790.0,0.50263252]
[1750162068393,0.01247324,105800.0,105790.0,0.50263252]
[1750162068594,0.02192432,105800.0,105790.0,0.50263252]
[1750162069326,0.03137549,105800.0,105790.0,0.50263252]
[1750162069540,0.01247324,105800.0,105790.0,0.50256795]
[1750162069734,0.02192441,105800.0,105790.0,0.50256795]
[1750162070250,0.02192432,105800.0,105790.0,0.50256795]
[1750162071085,0.01247324,105800.0,105790.0,0.50256795]
[1750162071935,0.02192432,105800.0,105790.0,0.50256795]
[1750162072166,0.01247324,105800.0,105790.0,0.57814303]
[1750162072385,0.01247324,105800.0,105790.0,0.50256795]
[1750162074758,0.18901805,105810.0,105800.0,0.24283904]
[1750162075010,0.21751147,105810.0,105800.0,0.25229029]
[1750162075232,0.00014189,105810.0,105800.0,0.35798339]
[1750162075451,0.00014189,105810.0,105800.0,1.21451456]
[1750162075672,0.00014189,105810.0,105800.0,0.13114176]
[1750162075891,0.00014189,105810.0,105800.0,0.37340761]
[1750162076112,0.05331207,105810.0,105800.0,0.39231021]
[1750162076362,0.04194324,105810.0,105800.0,0.37471021]
[1750162076564,0.0722127,105810.0,105800.0,0.37471021]
[1750162076963,0.0304927,105810.0,105800.0,0.37571021]
[1750162077121,0.0304927,105810.0,105800.0,0.21839021]
[1750162077333,0.0722127,105810.0,105800.0,0.37667021]
[1750162077579,0.02104234,105810.0,105800.0,0.37667021]
[1750162077800,0.06276234,105810.0,105800.0,0.37667021]
[1750162078017,0.06276234,105810.0,105800.0,0.37683021]
[1750162078224,0.05331207,105810.0,105800.0,0.37683021]
[1750162078402,0.01159207,105810.0,105800.0,0.37683021]
[1750162078881,0.06276243,105810.0,105800.0,0.37683021]
[1750162079552,0.05331207,105810.0,105800.0,0.37683021]
[1750162079779,0.01159207,105810.0,105800.0,0.37683021]
[1750162080026,0.05331207,105810.0,105800.0,0.41203021]
[1750162080284,0.03049297,105810.0,105800.0,0.41203021]
[1750162080537,0.07221297,105810.0,105800.0,0.39463021]
[1750162080744,0.06276252,105810.0,105800.0,0.39463021]
[1750162081697,0.02104252,105810.0,105800.0,0.39463021]
[1750162081896,0.06276252,105810.0,105800.0,0.37683021]
[1750162082267,0.06276243,105810.0,105800.0,0.37683021]
[1750162082708,0.07221288,105810.0,105800.0,0.37683021]
[1750162082987,0.06276243,105810.0,105800.0,0.37683021]
[1750162083224,0.07221288,105810.0,105800.0,0.37683021]
[1750162083468,0.00214189,105810.0,105800.0,0.37683021]
[1750162083683,0.05331198,105810.0,105800.0,0.41203021]
[1750162084481,0.04386189,105810.0,105800.0,0.41203021]
[1750162084686,0.05331207,105810.0,105800.0,0.41203021]
[1750162084899,0.06276243,105810.0,105800.0,0.41203021]
[1750162085112,0.05331207,105810.0,105800.0,0.41203021]
[1750162085560,0.06276243,105810.0,105800.0,0.41203021]
[1750162085803,0.05331207,105810.0,105800.0,0.41203021]
[1750162086050,0.01159207,105810.0,105800.0,0.41203021]
[1750162086284,0.04386189,105810.0,105800.0,0.50827197]
[1750162086568,0.49718098,105810.0,105800.0,0.19103591]
[1750162086820,0.5235317,105810.0,105800.0,0.21939065]
[1750162087058,0.51408161,105810.0,105800.0,0.19103591]
[1750162087297,0.52263125,105810.0,105800.0,0.19103591]
[1750162087556,0.52263125,105810.0,105800.0,0.2004877]
[1750162087775,0.51318062,105810.0,105800.0,0.19103591]
[1750162087992,0.49518062,105810.0,105800.0,0.20993913]
[1750162088181,0.49518062,105810.0,105800.0,0.20993922]
[1750162088399,0.49518062,105810.0,105800.0,0.21939074]
[1750162088621,0.51228062,105810.0,105800.0,0.19948761]
[1750162089060,0.27633066,105810.0,105800.0,0.20893922]
[1750162089263,0.51228062,105810.0,105800.0,0.19948761]
[1750162089476,0.51228062,105810.0,105800.0,0.20893922]
[1750162089690,0.51028062,105810.0,105800.0,0.21739074]
[1750162090129,0.51128062,105810.0,105800.0,0.20793922]
[1750162090382,0.51128062,105810.0,105800.0,0.1984877]
[1750162090602,0.51128062,105810.0,105800.0,0.18903591]
[1750162090810,0.27533066,105810.0,105800.0,0.2079394]
[1750162091027,0.51128062,105810.0,105800.0,0.1984877]
[1750162091243,0.51128062,105810.0,105800.0,0.21739092]
[1750162091468,0.34116383,105810.0,105800.0,0.23629369]
[1750162091717,0.51308188,105810.0,105800.0,0.22684235]
[1750162091958,0.52253278,105810.0,105800.0,0.22684235]
[1750162092183,0.51308233,105810.0,105800.0,0.2079394]
[1750162092435,0.51308233,105810.0,105800.0,0.21739101]
[1750162092671,0.51308233,105810.0,105800.0,0.22684253]
[1750162092893,0.51308233,105810.0,105800.0,0.23629351]
[1750162093102,0.32406428,105810.0,105800.0,0.23629351]
[1750162093317,0.51308233,105810.0,105800.0,0.22684217]
[1750162093562,0.51308233,105810.0,105800.0,0.23629351]
[1750162093778,0.51308233,105810.0,105800.0,0.21739074]
[1750162093990,0.48561599,105810.0,105800.0,0.21739074]
[1750162094218,0.48561599,105810.0,105800.0,0.20793922]
[1750162094410,0.48561599,105810.0,105800.0,0.21739074]
[1750162094622,0.48561599,105810.0,105800.0,0.22684217]
[1750162094831,0.29659794,105810.0,105800.0,0.23629351]
[1750162095243,0.29659794,105810.0,105800.0,0.22684217]
[1750162095478,0.29659794,105810.0,105800.0,0.23629351]
[1750162095669,0.28714704,105810.0,105800.0,0.22684181]
[1750162095878,0.29659794,105810.0,105800.0,0.22684181]
[1750162096077,0.28714704,105810.0,105800.0,0.22684181]
[1750162096498,0.47616509,105810.0,105800.0,0.20793895]
[1750162096912,0.47616509,105810.0,105800.0,0.20793904]
[1750162097118,0.47616509,105810.0,105800.0,0.19848761]
[1750162097328,0.47616509,105810.0,105790.0,0.20685378]
[1750162097329,0.52903591,105800.0,105790.0,0.20685378]
[1750162097550,0.78388882,105800.0,105790.0,0.18905378]
[1750162097759,0.01890421,105790.0,105780.0,0.41866453]
[1750162097957,0.25485417,105790.0,105780.0,0.41866453]
[1750162098220,0.27375829,105790.0,105780.0,0.41862453]
[1750162098429,0.28321071,105790.0,105780.0,0.41862453]
[1750162098858,0.02835645,105790.0,105780.0,0.26198453]
[1750162099073,0.27375883,105790.0,105780.0,0.41862453]
[1750162099282,0.27375892,105790.0,105780.0,0.42062453]
[1750162099503,0.22686265,105790.0,105780.0,0.26398453]
[1750162099728,0.44390875,105790.0,105780.0,0.002]
[1750162100158,0.72151879,105790.0,105780.0,0.002]
[1750162100369,0.95746875,105790.0,105780.0,0.005]
[1750162100581,0.96536875,105790.0,105780.0,0.005]
[1750162100817,0.96536875,105790.0,105780.0,0.003]
[1750162101020,1.06161051,105790.0,105780.0,0.003]
[1750162101233,1.06161051,105790.0,105780.0,0.001]
[1750162101673,1.06161051,105790.0,105760.0,0.25347181]
[1750162101674,0.02836207,105770.0,105760.0,0.25347181]
[1750162101935,0.07008207,105770.0,105760.0,0.25347181]
[1750162102982,0.07965646,105770.0,105760.0,0.25394505]
[1750162103201,0.08911075,105770.0,105760.0,0.25694505]
[1750162103660,0.08911066,105770.0,105760.0,0.25694505]
[1750162103884,0.06062778,105770.0,105760.0,0.25894505]
[1750162104110,0.08927557,105770.0,105760.0,0.25894505]
[1750162104338,0.09872977,105770.0,105760.0,0.25894505]
[1750162104588,0.10818406,105770.0,105760.0,0.25894505]
[1750162105939,0.29727421,105770.0,105760.0,0.24003584]
[1750162106168,0.5328251,105770.0,105760.0,0.21218065]
[1750162106406,0.5328251,105770.0,105760.0,0.22163602]
[1750162106647,0.52337081,105770.0,105760.0,0.22163602]
[1750162106877,0.52337081,105770.0,105760.0,0.02107324]
[1750162107101,0.52337081,105770.0,105760.0,0.01807324]
[1750162107338,0.68109081,105770.0,105760.0,0.20718065]
[1750162108049,0.68109081,105770.0,105760.0,0.21663584]
[1750162108276,0.68109081,105770.0,105760.0,0.01807324]
[1750162109650,0.68109081,105770.0,105760.0,0.00047324]
[1750162110779,0.68109081,105770.0,105760.0,0.01807324]
[1750162111663,0.68109081,105770.0,105760.0,0.00047324]
[1750162112860,1.03819081,105770.0,105760.0,0.00047324]
[1750162113949,1.02109081,105770.0,105760.0,0.00047324]
[1750162114600,0.78514085,105770.0,105760.0,0.01847324]
[1750162114843,1.02109081,105770.0,105760.0,0.01847324]
[1750162123221,1.02109081,105770.0,105760.0,0.00047324]
[1750162123443,1.02057081,105770.0,105760.0,0.03507324]
[1750162123659,0.82265081,105770.0,105760.0,0.03507324]
[1750162123869,1.02053081,105770.0,105760.0,0.03507324]
[1750162124763,0.78458085,105770.0,105760.0,0.03507324]
[1750162124969,1.02053081,105770.0,105760.0,0.03507324]
[1750162125645,0.78458085,105770.0,105760.0,0.03507324]
[1750162125868,1.02053081,105770.0,105760.0,0.03507324]
[1750162126963,1.02089081,105770.0,105760.0,0.03507324]
[1750162134719,0.78494085,105770.0,105760.0,0.03507324]
[1750162134942,1.02089081,105770.0,105760.0,0.03507324]
[1750162135200,1.02089081,105770.0,105760.0,0.22418065]
[1750162135725,1.02089081,105770.0,105760.0,0.03507324]
[1750162137584,0.78446085,105770.0,105760.0,0.22418065]
[1750162137799,0.58670085,105770.0,105760.0,0.22418065]
[1750162138012,1.02037081,105770.0,105760.0,0.22418065]
[1750162138434,0.82265081,105770.0,105760.0,0.23363602]
[1750162138642,1.02033081,105770.0,105760.0,0.23363602]
[1750162139058,1.02033081,105770.0,105760.0,0.2430913]
[1750162139499,1.02033081,105770.0,105760.0,0.03507324]
[1750162139716,1.02033081,105770.0,105760.0,0.22418065]
[1750162141242,1.02033081,105770.0,105760.0,0.23363602]
[1750162141449,1.02033081,105770.0,105760.0,0.2430913]
[1750162141884,1.02033081,105770.0,105760.0,0.22418065]
[1750162142082,1.01087643,105770.0,105760.0,0.22418065]
[1750162143621,1.01087643,105770.0,105760.0,0.23363602]
[1750162143874,1.01087643,105770.0,105760.0,0.2430913]
[1750162144108,1.01087643,105770.0,105760.0,0.23363602]
[1750162144969,0.58670076,105770.0,105760.0,0.24309121]
[1750162145192,1.02017072,105770.0,105760.0,0.2430913]
[1750162145407,1.02017072,105770.0,105760.0,0.25254649]
[1750162146043,1.02017072,105770.0,105760.0,0.26200159]
[1750162146253,1.02025439,105770.0,105760.0,0.2714566]
[1750162146667,1.02970841,105770.0,105760.0,0.26200123]
[1750162146899,1.03916279,105770.0,105760.0,0.25254622]
[1750162147112,1.03916279,105770.0,105760.0,0.24309112]
[1750162147745,1.03916279,105770.0,105760.0,0.22418065]
[1750162147999,1.02970877,105770.0,105760.0,0.23363602]
[1750162148217,1.02970877,105770.0,105760.0,0.2430913]
[1750162148438,1.02970877,105770.0,105760.0,0.25254649]
[1750162148833,1.02970877,105770.0,105760.0,0.23363602]
[1750162149068,1.02970877,105770.0,105760.0,0.22418065]
[1750162149308,1.02886777,105770.0,105760.0,0.23363602]
[1750162150744,1.01941348,105770.0,105760.0,0.23363602]
[1750162150944,1.01962014,105770.0,105760.0,0.2430913]
[1750162152341,1.01962014,105770.0,105760.0,0.25254649]
[1750162152480,1.01962014,105770.0,105760.0,0.2430913]
[1750162153877,1.01962014,105770.0,105760.0,0.22418065]
[1750162154085,1.01962014,105770.0,105760.0,0.24309121]
[1750162154312,0.38739961,105770.0,105760.0,0.24309121]
[1750162154585,0.04739961,105770.0,105760.0,0.49815758]
[1750162154746,0.08863961,105770.0,105760.0,0.49815758]
[1750162154948,0.02889046,105770.0,105760.0,0.49815758]
[1750162155130,0.02889046,105770.0,105760.0,0.7343142]
[1750162155335,0.07013046,105770.0,105760.0,0.7343142]
[1750162155784,0.02889046,105770.0,105760.0,0.7343142]
[1750162155958,0.00108367,105770.0,105760.0,0.59439934]
[1750162156985,0.00108367,105770.0,105760.0,0.59430818]
[1750162157190,0.00108367,105770.0,105760.0,0.75138818]
[1750162157392,0.00108367,105770.0,105760.0,0.59430818]
[1750162157769,0.00108367,105770.0,105760.0,0.75138818]
[1750162158205,0.00108367,105770.0,105760.0,0.75801599]
[1750162159739,0.00108367,105770.0,105760.0,0.60093599]
[1750162159950,0.00108367,105770.0,105760.0,0.75809599]
[1750162160351,0.00108367,105770.0,105760.0,0.36487053]
[1750162160604,0.00108367,105770.0,105760.0,0.75805599]
[1750162160849,0.00108367,105770.0,105760.0,0.36487053]
[1750162161067,0.00108367,105770.0,105760.0,0.42570877]
[1750162161720,0.00108367,105770.0,105760.0,0.42570143]
[1750162162169,0.00108367,105770.0,105760.0,0.42578143]
[1750162162378,0.00108367,105770.0,105760.0,0.26862143]
[1750162163010,0.00108367,105770.0,105760.0,0.42578143]
[1750162163270,0.00108367,105770.0,105760.0,0.26862143]
[1750162163490,0.00108367,105770.0,105760.0,0.42574143]
[1750162163491,0.01053734,105770.0,105760.0,0.42574143]
[1750162163718,0.00108367,105770.0,105760.0,0.42574143]
[1750162163946,0.01999119,105770.0,105760.0,0.42578143]
[1750162164166,0.01053734,105770.0,105760.0,0.42578143]
[1750162164386,0.01053743,105770.0,105760.0,0.26862143]
[1750162164845,0.01053743,105770.0,105760.0,0.42574143]
[1750162165494,0.01999145,105770.0,105760.0,0.26862143]
[1750162165718,0.26551076,105770.0,105760.0,0.26862143]
[1750162165935,0.26551076,105770.0,105760.0,0.26862132]
[1750162166138,0.01999128,105770.0,105760.0,0.26862132]
[1750162166598,0.0294453,105770.0,105760.0,0.26862132]
[1750162166834,0.03889941,105770.0,105760.0,0.26862132]
[1750162167078,0.04835361,105770.0,105760.0,0.26862132]
[1750162167288,0.03889941,105770.0,105760.0,0.26862132]
[1750162167582,0.01999128,105770.0,105760.0,0.26862132]
[1750162168023,0.02944522,105770.0,105760.0,0.26862132]
[1750162168426,0.03889942,105770.0,105760.0,0.26862132]
[1750162168713,0.03889942,105770.0,105760.0,0.26862233]
[1750162168905,0.03889933,105770.0,105760.0,0.26862233]
[1750162169133,0.08041933,105770.0,105760.0,0.26862233]
[1750162169457,0.08987371,105770.0,105760.0,0.26862242]
[1750162169669,0.27896386,105770.0,105760.0,0.26862242]
[1750162169877,0.26951001,105770.0,105760.0,0.25916759]
[1750162170080,0.26951001,105770.0,105760.0,0.26862251]
[1750162171376,0.48666742,105770.0,105760.0,0.04169461]
[1750162171581,0.82666742,105770.0,105760.0,0.02399608]
[1750162172015,0.78514742,105770.0,105760.0,0.02399608]
[1750162172225,0.82666742,105770.0,105760.0,0.02399707]
[1750162174180,0.82666742,105770.0,105760.0,0.24941495]
[1750162174670,0.81721313,105770.0,105760.0,0.23995985]
[1750162174908,0.81721313,105770.0,105760.0,0.24941504]
[1750162176025,0.80775866,105770.0,105760.0,0.23995985]
[1750162176528,0.80775866,105770.0,105760.0,0.24941513]
[1750162177801,0.80775866,105770.0,105760.0,0.24941565]
[1750162178015,0.5716932,105770.0,105760.0,0.24941565]
[1750162178247,0.81721233,105770.0,105760.0,0.25887066]
[1750162178544,0.81721295,105770.0,105760.0,0.25887066]
[1750162179391,0.81721295,105770.0,105760.0,0.25224631]
[1750162180687,0.58114749,105770.0,105760.0,0.2427913]
[1750162180904,0.81721295,105770.0,105760.0,0.2522464]
[1750162181237,0.81721295,105770.0,105760.0,0.2427913]
[1750162181449,0.81721295,105770.0,105760.0,0.25224649]
[1750162182102,0.81721295,105770.0,105760.0,0.26170159]
[1750162183436,0.81721295,105770.0,105760.0,0.2711566]
[1750162184083,0.81721295,105770.0,105760.0,0.27115615]
[1750162184302,0.58114749,105770.0,105760.0,0.27115615]
[1750162184509,0.53962749,105770.0,105760.0,0.24279112]
[1750162184720,0.73762749,105770.0,105760.0,0.25224622]
[1750162185409,0.73758749,105770.0,105760.0,0.25224622]
[1750162185654,0.75649589,105770.0,105760.0,0.27115606]
[1750162186133,0.75649589,105770.0,105760.0,0.27115552]
[1750162186380,0.76595036,105770.0,105760.0,0.27115552]
[1750162186611,0.76595036,105770.0,105760.0,0.26170078]
[1750162186833,0.76595036,105770.0,105760.0,0.25224595]
[1750162187072,0.76595036,105770.0,105760.0,0.26170078]
[1750162187309,0.60951036,105770.0,105760.0,0.26170078]
[1750162187585,0.60005634,105770.0,105760.0,0.25224595]
[1750162188065,0.60005634,105770.0,105760.0,0.24279094]
[1750162188544,0.35053769,105770.0,105760.0,0.26170087]
[1750162188785,0.60950965,105770.0,105760.0,0.27115561]
[1750162189012,0.42042012,105770.0,105760.0,0.27115561]
[1750162189754,0.60950965,105770.0,105760.0,0.27115561]
[1750162190467,0.61896412,105770.0,105760.0,0.27115561]
[1750162190938,0.60951036,105770.0,105760.0,0.26170087]
[1750162191902,0.60951036,105770.0,105760.0,0.2711557]
[1750162193084,0.83616978,105770.0,105760.0,0.25224595]
[1750162193511,0.60005634,105770.0,105760.0,0.2711557]
[1750162194425,0.63762578,105770.0,105760.0,0.27115525]
[1750162195065,0.82671531,105770.0,105760.0,0.27115525]
[1750162195314,0.39205769,105770.0,105760.0,0.27115525]
[1750162195524,0.41096574,105770.0,105760.0,0.27115525]
[1750162195939,0.35999145,105770.0,105760.0,0.50726869]
[1750162196156,0.41096539,105770.0,105760.0,0.50726869]
[1750162196607,0.37889942,105770.0,105760.0,0.50726869]
[1750162197035,0.34108367,105770.0,105760.0,0.60351045]
[1750162197273,0.00108367,105770.0,105760.0,0.99566389]
[1750162200303,0.00108367,105770.0,105760.0,0.52343701]
[1750162200535,0.00108367,105770.0,105760.0,0.99566389]
[1750162200953,0.00108367,105770.0,105760.0,0.75946201]
[1750162201169,0.04092,105790.0,105780.0,0.21741328]
[1750162201410,1.12034372,105800.0,105790.0,0.20795888]
[1750162201411,0.40773922,105800.0,105790.0,0.20795888]
[1750162201646,0.44865886,105800.0,105790.0,0.21741103]
[1750162202078,0.50664647,105800.0,105790.0,0.26106309]
[1750162202080,0.31761056,105800.0,105790.0,0.26106309]
[1750162202300,0.11781056,105800.0,105790.0,0.26106309]
[1750162202515,0.31629826,105800.0,105790.0,0.24215888]
[1750162202736,0.29739584,105800.0,105790.0,0.24215888]
[1750162202951,0.29739584,105800.0,105790.0,0.26106345]
[1750162203174,0.22613436,105800.0,105790.0,0.26106345]
[1750162203393,0.24503767,105800.0,105790.0,0.2705156]
[1750162203613,0.04764183,105800.0,105790.0,0.27051498]
[1750162203829,0.04864094,105800.0,105790.0,0.27051498]
[1750162204388,0.04964094,105800.0,105790.0,0.27051498]
[1750162204603,0.06854389,105800.0,105790.0,0.27051498]
[1750162204882,0.06863603,105800.0,105790.0,0.27051498]
[1750162205520,0.05918451,105800.0,105790.0,0.27051498]
[1750162205787,0.10623424,105800.0,105790.0,0.27051498]
[1750162206567,0.09678263,105800.0,105790.0,0.27051498]
[1750162206991,0.0873312,105800.0,105790.0,0.27051498]
[1750162207173,0.09678272,105800.0,105790.0,0.27051498]
[1750162207378,0.2432912,105800.0,105790.0,0.27051498]
[1750162207822,0.26219451,105800.0,105790.0,0.24215853]
[1750162208041,0.26219442,105800.0,105790.0,0.25161077]
[1750162208274,0.25274272,105800.0,105790.0,0.26106283]
[1750162208483,0.2432912,105800.0,105790.0,0.26106283]
[1750162208742,0.25274272,105800.0,105790.0,0.26106283]
[1750162208933,0.25274272,105800.0,105790.0,0.26106292]
[1750162209140,0.09678272,105800.0,105790.0,0.27051498]
[1750162209364,0.23375977,105800.0,105790.0,0.27051498]
[1750162209657,0.24321094,105800.0,105790.0,0.27051498]
[1750162210111,0.08733094,105800.0,105790.0,0.27051498]
[1750162210351,0.09678219,105800.0,105790.0,0.27051498]
[1750162210755,0.10623371,105800.0,105790.0,0.27051498]
[1750162211177,0.34225871,105800.0,105790.0,0.25161112]
[1750162211398,0.35171041,105800.0,105790.0,0.26106327]
[1750162211613,0.54074632,105800.0,105790.0,0.23270646]
[1750162211824,0.53129533,105800.0,105790.0,0.26106362]
[1750162212047,0.53129533,105800.0,105790.0,0.25161147]
[1750162212275,0.54074712,105800.0,105790.0,0.2610638]
[1750162212491,0.10623442,105800.0,105790.0,0.27051551]
[1750162212703,0.34225942,105800.0,105790.0,0.26106336]
[1750162213367,0.33280772,105800.0,105790.0,0.25161077]
[1750162213596,0.54074712,105800.0,105790.0,0.24215853]
[1750162213819,0.34225942,105800.0,105790.0,0.25161077]
[1750162214061,0.53129533,105800.0,105790.0,0.24215888]
[1750162214277,0.53129533,105800.0,105790.0,0.25161121]
[1750162214490,0.53129533,105800.0,105790.0,0.26106345]
[1750162214720,0.34225942,105800.0,105790.0,0.26106345]
[1750162214948,0.34225942,105800.0,105790.0,0.2705156]
[1750162215787,0.34225942,105800.0,105790.0,0.26106345]
[1750162216210,0.34225942,105800.0,105790.0,0.25161121]
[1750162216429,0.34225942,105800.0,105790.0,0.2705156]
[1750162216643,0.35171112,105800.0,105790.0,0.26106345]
[1750162216853,0.34225933,105800.0,105790.0,0.2705156]
[1750162217064,0.34225933,105800.0,105790.0,0.26106345]
[1750162217589,0.35171112,105800.0,105790.0,0.26106345]
[1750162217763,0.54074703,105800.0,105790.0,0.25161121]
[1750162218003,0.34225933,105800.0,105790.0,0.26106345]
[1750162218214,0.35171103,105800.0,105790.0,0.2705156]
[1750162218948,0.35171103,105800.0,105790.0,0.26106345]
[1750162219165,0.10623433,105800.0,105790.0,0.27051498]
[1750162219373,0.25234263,105800.0,105790.0,0.27051498]
[1750162219577,0.49741924,105800.0,105790.0,0.26106292]
[1750162220003,0.49741924,105800.0,105790.0,0.27051498]
[1750162220219,0.48796763,105800.0,105790.0,0.27051498]
[1750162220844,0.26139433,105800.0,105790.0,0.26106292]
[1750162221077,0.4973943,105800.0,105790.0,0.27051498]
[1750162221308,0.09638263,105800.0,105790.0,0.27051498]
[1750162221521,0.4974343,105800.0,105790.0,0.27051498]
[1750162221735,0.50688609,105800.0,105790.0,0.25161077]
[1750162221940,0.49734216,105800.0,105790.0,0.26106292]
[1750162222152,0.49734216,105800.0,105790.0,0.27051498]
[1750162222366,0.33229055,105800.0,105790.0,0.27051498]
[1750162223023,0.34174216,105800.0,105790.0,0.27051498]
[1750162223233,0.34174216,105800.0,105790.0,0.26106292]
[1750162223685,0.1057421,105800.0,105790.0,0.27051498]
[1750162223896,0.34174216,105800.0,105790.0,0.25161059]
[1750162224095,0.33229064,105800.0,105790.0,0.25161059]
[1750162224753,0.33229064,105800.0,105790.0,0.24215853]
[1750162225023,0.29477828,105800.0,105790.0,0.26106345]
[1750162225243,0.53077834,105800.0,105790.0,0.25161121]
[1750162225673,0.34174234,105800.0,105790.0,0.26106336]
[1750162225889,0.34174234,105800.0,105790.0,0.2705156]
[1750162226099,0.34174207,105800.0,105790.0,0.27051498]
[1750162226309,0.33229046,105800.0,105790.0,0.27051498]
[1750162226534,0.34174207,105800.0,105790.0,0.27051498]
[1750162228213,0.34174198,105800.0,105790.0,0.27051498]
[1750162228635,0.49706198,105800.0,105790.0,0.27051498]
[1750162229040,0.06793664,105800.0,105790.0,0.58209012]
[1750162229258,0.23266772,105800.0,105790.0,0.58209012]
[1750162229479,0.24211897,105800.0,105790.0,0.58209012]
[1750162229852,0.07738772,105800.0,105790.0,0.34609006]
[1750162230096,0.23062772,105800.0,105790.0,0.34609006]
[1750162230299,0.24953032,105800.0,105790.0,0.34609006]
[1750162230501,0.47607895,105800.0,105790.0,0.34609006]
[1750162231335,0.48553029,105800.0,105790.0,0.34609006]
[1750162231524,0.4959819,105800.0,105790.0,0.34609006]
[1750162231736,0.25053023,105800.0,105790.0,0.34609006]
[1750162232144,0.26535356,105800.0,105790.0,0.34609006]
[1750162232353,0.01990216,105800.0,105790.0,0.34609006]
[1750162232607,0.01045099,105800.0,105790.0,0.34609006]
[1750162232773,0.41106222,105800.0,105790.0,0.34609006]
[1750162232979,0.01045099,105800.0,105790.0,0.34609006]
[1750162233554,0.01045099,105800.0,105790.0,0.58209012]
[1750162234815,0.001,105800.0,105790.0,0.67833188]
[1750162235030,0.001,105800.0,105790.0,0.44233182]
[1750162235240,0.23700006,105800.0,105790.0,0.27051498]
[1750162235452,0.001,105800.0,105790.0,0.27051498]
[1750162235673,0.61242385,105810.0,105800.0,0.24293904]
[1750162235890,0.62187466,105810.0,105800.0,0.22513913]
[1750162236104,0.62187466,105810.0,105800.0,0.23459056]
[1750162236314,0.62861661,105810.0,105800.0,0.23459056]
[1750162236529,0.43285661,105810.0,105800.0,0.23459056]
[1750162236748,0.62861661,105810.0,105800.0,0.2440419]
[1750162236951,0.62861661,105810.0,105800.0,0.23459056]
[1750162237164,0.66740121,105810.0,105800.0,0.24404181]
[1750162237572,0.47164121,105810.0,105800.0,0.2440419]
[1750162237789,0.66736121,105810.0,105800.0,0.2440419]
[1750162238001,0.67681211,105810.0,105800.0,0.2440419]
[1750162238431,0.66736121,105810.0,105800.0,0.2440419]
[1750162238635,0.66736121,105810.0,105800.0,0.27109307]
[1750162238636,0.6579104,105810.0,105800.0,0.27109307]
[1750162238847,0.66736112,105810.0,105800.0,0.27109315]
[1750162239059,0.66734053,105810.0,105800.0,0.27109315]
[1750162239262,0.66734053,105810.0,105800.0,0.27109262]
[1750162239471,0.44081187,105810.0,105800.0,0.27109262]
[1750162239693,0.67679134,105810.0,105800.0,0.26164145]
[1750162239909,0.43132106,105810.0,105800.0,0.27109262]
[1750162240115,0.41241971,105810.0,105800.0,0.27109262]
[1750162240418,0.42187043,105810.0,105800.0,0.27109262]
[1750162240637,0.1590543,105810.0,105800.0,0.50707209]
[1750162240852,0.1590543,105810.0,105800.0,0.60331385]
[1750162241064,0.1590543,105810.0,105800.0,0.36733438]
[1750162241716,0.1590543,105810.0,105800.0,0.27109262]
[1750162243180,0.1590543,105810.0,105800.0,0.50707209]
[1750162243993,0.1590543,105810.0,105800.0,0.27109262]
[1750162245536,0.1590543,105810.0,105800.0,0.50707209]
[1750162247436,0.1590543,105810.0,105800.0,0.50907209]
[1750162247704,0.1590543,105810.0,105800.0,0.60531385]
[1750162247904,0.1590543,105810.0,105800.0,0.60631385]
[1750162251453,0.1590543,105810.0,105800.0,0.64473805]
[1750162252051,0.1590543,105810.0,105800.0,0.40875858]
[1750162252240,0.1590543,105810.0,105800.0,0.64473805]
[1750162254116,0.1590543,105810.0,105800.0,0.98473805]
[1750162254871,0.04052,105840.0,105830.0,0.25312859]
[1750162255116,0.04065412,105850.0,105840.0,0.23510805]
[1750162255434,0.05010073,105850.0,105840.0,0.25290805]
[1750162255621,0.07982323,105850.0,105840.0,0.25290805]
[1750162255839,0.03930323,105850.0,105840.0,0.23510805]
[1750162256060,0.73279359,105850.0,105840.0,0.18896447]
[1750162256269,0.36079691,105850.0,105840.0,0.20786055]
[1750162256480,0.27173735,105850.0,105840.0,0.19841251]
[1750162256698,0.50771682,105850.0,105840.0,0.20786046]
[1750162256906,0.48981682,105850.0,105840.0,0.20786046]
[1750162257147,0.68821077,105850.0,105840.0,0.21730832]
[1750162257356,0.68821077,105850.0,105840.0,0.20786046]
[1750162257558,0.68821077,105850.0,105840.0,0.18896447]
[1750162257764,0.68821077,105850.0,105840.0,0.20786082]
[1750162258197,0.68821077,105850.0,105840.0,0.21730886]
[1750162258403,0.49257077,105850.0,105840.0,0.21730886]
[1750162258618,0.68821077,105850.0,105840.0,0.22675681]
[1750162258831,0.68821077,105850.0,105840.0,0.21730886]
[1750162259051,0.68821077,105850.0,105840.0,0.22675672]
[1750162259255,0.4522313,105850.0,105840.0,0.2534044]
[1750162259462,0.49257077,105850.0,105840.0,0.2534044]
[1750162259691,0.68813077,105850.0,105840.0,0.25340377]
[1750162260335,0.08918993,105850.0,105840.0,0.25340377]
[1750162260540,0.26320396,105850.0,105840.0,0.27090377]
[1750162260758,0.50201729,105850.0,105840.0,0.27090377]
[1750162260967,0.50201792,105850.0,105840.0,0.23450859]
[1750162261179,0.54245792,105850.0,105840.0,0.23450859]
[1750162261390,0.52356389,105850.0,105830.0,0.30095466]
[1750162261595,0.23597947,105840.0,105830.0,0.33685155]
[1750162261816,0.24542733,105840.0,105830.0,0.32740315]
[1750162262032,0.01889545,105840.0,105830.0,0.32740315]
[1750162262253,0.02834349,105840.0,105830.0,0.25182807]
[1750162262928,0.01889536,105840.0,105830.0,0.25182807]
[1750162263146,0.69608389,105850.0,105840.0,0.20786028]